[Event "28th CRO-chT Women 2019"]
[Site "Mali Losinj"]
[Date "2019.10.02"]
[Round "6.2"]
[White "Medic, Mirjana"]
[Black "Ivekovic, Zvjezdana"]
[Result "1-0"]
[ECO "D46"]
[WhiteElo "2163"]
[BlackElo "1781"]
[Annotator "NA"]
[PlyCount "75"]
[EventDate "2019.09.28"]
[EventType "team-tourn"]
[EventCountry "CRO"]
[SourceTitle "playchess.com"]
[Source "ChessBase"]
[SourceQuality "1"]
[TimeControl "40/5400+30:1800+30"]

1. d4 {[%emt 0:00:30]} d5 {[%emt 0:00:30]} 2. Nf3 {[%emt 0:00:00]} c6 {[%emt 0:00:00]} 3. c4 {[%emt 0:00:00]} Nf6 {[%emt 0:00:00]} 4. Nc3 {[%emt 0:00:30]} e6 {[%emt 0:00:30]} 5. e3 {[%emt 0:00:30]} Nbd7 {[%emt 0:01:30]} 6. Qc2 {[%emt 0:00:30]} Bd6 {[%emt 0:02:30]} 7. Bd3 {[%emt 0:01:30]} O-O {[%emt 0:06:30]} 8. O-O {[%emt 0:00:30]} dxc4 {[%emt 0:01:30]} 9. Bxc4 {[%emt 0:00:00]} b5 {[%emt 0:01:30]} 10. Be2 {[%emt 0:00:00]} Bb7 {[%emt 0:02:30]} 11. Rd1 {[%emt 0:00:30]} Qe7 {[%emt 0:01:30]} 12. a3 {[%emt 0:12:30]} Rfc8 {[%emt 0:08:30]} 13. e4 {[%emt 0:01:30]} e5 {[%emt 0:01:30]} 14. g3 {[%emt 0:11:30]} exd4 {[%emt 0:20:30]} 15. Nxd4 {[%emt 0:00:30]} Be5 {[%emt 0:00:00]} 16. Nf5 {[%emt 0:11:30]} Qe6 {[%emt 0:01:00]} 17. Bf3 {[%emt 0:00:00]} Nb6 {[%emt 0:10:30]} 18. Be3 {[%emt 0:05:00]} Rd8 {[%emt 0:07:30]} 19. Nd4 {[%emt 0:05:30]} Qe8 {[%emt 0:05:30]} 20. Nb3 {[%emt 0:00:30]} Nc4 {[%emt 0:00:30]} 21. Rxd8 {[%emt 0:02:30]} Qxd8 {[%emt 0:03:30]} 22. Rd1 {[%emt 0:00:30]} Qc7 {[%emt 0:00:30]} 23. Bd4 {[%emt 0:02:30]} a5 {[%emt 0:02:30]} 24. Bxe5 {[%emt 0:11:30]} Nxe5 {[%emt 0:00:30]} 25. Bg2 {[%emt 0:00:30]} Qb6 {[%emt 0:00:30]} 26. Qe2 {[%emt 0:00:30]} Ba6 {[%emt 0:02:55]} 27. Qc2 {[%emt 0:01:30]} a4 {[%emt 0:05:03]} 28. Nd4 {[%emt 0:03:30]} Nc4 {[%emt 0:02:33]} 29. Nxc6 {[%emt 0:01:30]} Re8 {[%emt 0:03:01]} 30. Nb4 {[%emt 0:00:30]} Bb7 {[%emt 0:02:33]} 31. h3 {[%emt 0:06:30]} Bc8 {[%emt 0:06:32]} 32. Nxa4 {[%emt 0:01:30]} bxa4 {[%emt 0:01:13]} 33. Qxc4 {[%emt 0:00:00]} Be6 {[%emt 0:00:14]} 34. Qc3 {[%emt 0:03:05]} Bb3 {[%emt 0:00:22]} 35. Rd4 {[%emt 0:01:18]} Qb8 {[%emt 0:01:01]} 36. Nc6 {[%emt 0:02:00]} Qb7 {[%emt 0:00:27]} 37. e5 {[%emt 0:00:07]} Qb5 {[%emt 0:00:33]} 38. exf6 {[%emt 0:00:30]} 1-0

[Event "28th CRO-chT Women 2019"]
[Site "Mali Losinj"]
[Date "2019.10.02"]
[Round "6.3"]
[White "Turk, Vesna"]
[Black "Roklicer, Heike"]
[Result "0-1"]
[ECO "D03"]
[WhiteElo "1694"]
[BlackElo "2032"]
[Annotator "NA"]
[PlyCount "120"]
[EventDate "2019.09.28"]
[EventType "team-tourn"]
[EventCountry "CRO"]
[SourceTitle "playchess.com"]
[Source "ChessBase"]
[SourceQuality "1"]
[TimeControl "40/5400+30:1800+30"]

1. d4 {[%emt 0:00:30]} d5 {[%emt 0:02:30]} 2. Nf3 {[%emt 0:00:00]} c6 {[%emt 0:00:30]} 3. c3 {[%emt 0:02:00]} Nf6 {[%emt 0:00:30]} 4. Bg5 {[%emt 0:00:00]} g6 {[%emt 0:00:30]} 5. e3 {[%emt 0:02:00]} Bg7 {[%emt 0:00:00]} 6. Be2 {[%emt 0:00:30]} Bf5 {[%emt 0:02:00]} 7. Nbd2 {[%emt 0:02:30]} Nbd7 {[%emt 0:00:30]} 8. O-O {[%emt 0:00:30]} O-O {[%emt 0:00:30]} 9. Nh4 {[%emt 0:01:30]} Be6 {[%emt 0:07:30]} 10. Nhf3 {[%emt 0:03:30]} Ne4 {[%emt 0:09:30]} 11. Nxe4 {[%emt 0:02:30]} dxe4 {[%emt 0:00:00]} 12. Nd2 {[%emt 0:00:00]} f5 {[%emt 0:03:00]} 13. h3 {[%emt 0:02:00]} c5 {[%emt 0:18:30]} 14. Bc4 {[%emt 0:01:30]} Bxc4 {[%emt 0:00:30]} 15. Nxc4 {[%emt 0:00:00]} h6 {[%emt 0:09:30]} 16. Bf4 {[%emt 0:00:00]} cxd4 {[%emt 0:03:30]} 17. cxd4 {[%emt 0:00:30]} b5 {[%emt 0:11:30]} 18. Nd2 {[%emt 0:01:30]} Nf6 {[%emt 0:05:30]} 19. Rc1 {[%emt 0:03:30]} Nd5 {[%emt 0:02:30]} 20. Qb3 {[%emt 0:01:30]} Kh7 {[%emt 0:00:30]} 21. Bh2 {[%emt 0:01:30]} a6 {[%emt 0:01:53]} 22. Rc5 {[%emt 0:01:30]} e6 {[%emt 0:01:18]} 23. Rfc1 {[%emt 0:00:30]} Qd7 {[%emt 0:05:47]} 24. Qa3 {[%emt 0:02:30]} Rfc8 {[%emt 0:08:36]} 25. Rxc8 {[%emt 0:08:30]} Rxc8 {[%emt 0:00:01]} 26. Rxc8 {[%emt 0:00:30]} Qxc8 {[%emt 0:00:03]} 27. Qc5 {[%emt 0:00:30]} Qxc5 {[%emt 0:04:34]} 28. dxc5 {[%emt 0:00:00]} Bxb2 {[%emt 0:01:16]} 29. c6 {[%emt 0:00:00]} e5 {[%emt 0:00:30]} 30. Nb3 {[%emt 0:01:30]} Kg8 {[%emt 0:00:38]} 31. Nc5 {[%emt 0:00:30]} Nc7 {[%emt 0:00:31]} 32. Nd7 {[%emt 0:00:30]} Kf7 {[%emt 0:00:58]} 33. Nxe5+ {[%emt 0:02:30]} Bxe5 {[%emt 0:00:19]} 34. Bxe5 {[%emt 0:00:00]} Nd5 {[%emt 0:00:44]} 35. c7 {[%emt 0:00:00]} Nb6 {[%emt 0:00:18]} 36. Bc3 {[%emt 0:04:30]} Ke6 {[%emt 0:00:28]} 37. Ba5 {[%emt 0:00:00]} Nc8 {[%emt 0:00:02]} 38. Kf1 {[%emt 0:00:00]} Kd7 {[%emt 0:00:09]} 39. Ke2 {[%emt 0:00:30]} Nd6 {[%emt 0:00:31]} 40. Kd1 {[%emt 0:00:00]} Nc4 {[%emt 0:00:00]} 41. Bc3 {[%emt 0:03:00]} Kxc7 {[%emt 0:01:54]} 42. Kc2 {[%emt 0:00:30]} Kc6 {[%emt 0:01:30]} 43. Kb3 {[%emt 0:00:30]} Nb6 {[%emt 0:01:30]} 44. Ba5 {[%emt 0:01:30]} Nd5 {[%emt 0:01:30]} 45. a3 {[%emt 0:01:30]} h5 {[%emt 0:08:30]} 46. g3 {[%emt 0:01:30]} Ne7 {[%emt 0:00:30]} 47. Bd8 {[%emt 0:00:30]} Nd5 {[%emt 0:00:30]} 48. Ba5 {[%emt 0:00:30]} Nb6 {[%emt 0:00:30]} 49. Bb4 {[%emt 0:00:30]} Nd7 {[%emt 0:00:30]} 50. Kc3 {[%emt 0:12:30]} Kd5 {[%emt 0:00:30]} 51. Ba5 {[%emt 0:01:30]} Ne5 {[%emt 0:00:30]} 52. Bc7 {[%emt 0:01:30]} Nd3 {[%emt 0:04:45]} 53. f3 {[%emt 0:01:30]} Nf2 {[%emt 0:00:11]} 54. fxe4+ {[%emt 0:00:30]} Kxe4 {[%emt 0:04:24]} 55. h4 {[%emt 0:04:30]} Nd1+ {[%emt 0:02:45]} 56. Kb4 {[%emt 0:00:30]} Nxe3 {[%emt 0:00:09]} 57. Bf4 {[%emt 0:07:30]} Nd5+ {[%emt 0:02:24]} 58. Ka5 {[%emt 0:00:30]} Nxf4 {[%emt 0:00:10]} 59. gxf4 {[%emt 0:00:30]} Kxf4 {[%emt 0:00:01]} 60. Kxa6 {[%emt 0:00:30]} Ke5 {[%emt 0:00:37]} 0-1

[Event "28th CRO-chT Women 2019"]
[Site "Mali Losinj"]
[Date "2019.10.02"]
[Round "6.4"]
[White "Dejanovic, Tereza"]
[Black "Mikic Muha, Mirela"]
[Result "1-0"]
[ECO "C62"]
[WhiteElo "1811"]
[BlackElo "1621"]
[Annotator "NA"]
[PlyCount "55"]
[EventDate "2019.09.28"]
[EventType "team-tourn"]
[EventCountry "CRO"]
[SourceTitle "playchess.com"]
[Source "ChessBase"]
[SourceQuality "1"]
[TimeControl "40/5400+30:1800+30"]

1. e4 {[%emt 0:00:30]} e5 {[%emt 0:00:30]} 2. Nf3 {[%emt 0:00:00]} Nc6 {[%emt 0:00:30]} 3. Bb5 {[%emt 0:00:00]} d6 {[%emt 0:00:30]} 4. c3 {[%emt 0:00:30]} Bd7 {[%emt 0:03:30]} 5. Ba4 {[%emt 0:02:30]} Nf6 {[%emt 0:02:30]} 6. Bc2 {[%emt 0:01:30]} Be7 {[%emt 0:03:30]} 7. O-O {[%emt 0:00:30]} Qc8 {[%emt 0:04:30]} 8. d3 {[%emt 0:05:30]} Bg4 {[%emt 0:07:30]} 9. Nbd2 {[%emt 0:02:30]} Qd7 {[%emt 0:13:30]} 10. Ba4 {[%emt 0:06:30]} a6 {[%emt 0:00:30]} 11. Re1 {[%emt 0:00:30]} b5 {[%emt 0:01:30]} 12. Bc2 {[%emt 0:00:30]} h6 {[%emt 0:02:30]} 13. Nf1 {[%emt 0:02:30]} Nh7 {[%emt 0:02:30]} 14. h3 {[%emt 0:01:30]} Bh5 {[%emt 0:04:30]} 15. Ng3 {[%emt 0:00:30]} Bxf3 {[%emt 0:01:30]} 16. Qxf3 {[%emt 0:00:30]} Ng5 {[%emt 0:16:30]} 17. Qd1 {[%emt 0:03:30]} O-O {[%emt 0:06:30]} 18. d4 {[%emt 0:11:30]} exd4 {[%emt 0:10:07]} 19. cxd4 {[%emt 0:00:30]} Nh7 {[%emt 0:05:19]} 20. Nf5 {[%emt 0:03:30]} Rfe8 {[%emt 0:02:58]} 21. Bxh6 {[%emt 0:03:30]} g6 {[%emt 0:03:15]} 22. Nxe7+ {[%emt 0:02:30]} Rxe7 {[%emt 0:00:14]} 23. d5 {[%emt 0:06:30]} Nb4 {[%emt 0:02:28]} 24. Qd4 {[%emt 0:00:30]} f6 {[%emt 0:01:11]} 25. Qxb4 {[%emt 0:00:00]} c5 {[%emt 0:00:51]} 26. dxc6 {[%emt 0:00:00]} Qxc6 {[%emt 0:00:10]} 27. Bb3+ {[%emt 0:00:30]} Kh8 {[%emt 0:00:07]} 28. Bd5 {[%emt 0:00:30]} 1-0

[Event "28th CRO-chT Women 2019"]
[Site "Mali Losinj"]
[Date "2019.10.02"]
[Round "6.6"]
[White "Saric, Kristina"]
[Black "Djukic, Sandra"]
[Result "0-1"]
[ECO "B15"]
[WhiteElo "2222"]
[BlackElo "2179"]
[Annotator "NA"]
[PlyCount "102"]
[EventDate "2019.09.28"]
[EventType "team-tourn"]
[EventCountry "CRO"]
[SourceTitle "playchess.com"]
[Source "ChessBase"]
[SourceQuality "1"]
[TimeControl "40/5400+30:1800+30"]

1. e4 {[%emt 0:00:30]} c6 {[%emt 0:05:30]} 2. d4 {[%emt 0:00:30]} d5 {[%emt 0:00:00]} 3. Nc3 {[%emt 0:00:30]} dxe4 {[%emt 0:00:00]} 4. Nxe4 {[%emt 0:00:00]} Nf6 {[%emt 0:00:30]} 5. Nxf6+ {[%emt 0:01:00]} exf6 {[%emt 0:00:00]} 6. Nf3 {[%emt 0:02:30]} Bd6 {[%emt 0:00:00]} 7. Be2 {[%emt 0:01:30]} O-O {[%emt 0:00:30]} 8. O-O {[%emt 0:00:00]} Re8 {[%emt 0:01:30]} 9. c4 {[%emt 0:01:00]} Nd7 {[%emt 0:00:30]} 10. Be3 {[%emt 0:07:30]} Nf8 {[%emt 0:03:30]} 11. Qd2 {[%emt 0:04:30]} Ng6 {[%emt 0:19:30]} 12. Rad1 {[%emt 0:06:30]} Qc7 {[%emt 0:22:30]} 13. Rfe1 {[%emt 0:05:30]} Bf5 {[%emt 0:08:30]} 14. c5 {[%emt 0:23:30]} Bf4 {[%emt 0:11:30]} 15. Bd3 {[%emt 0:03:30]} Bxd3 {[%emt 0:10:31]} 16. Qxd3 {[%emt 0:00:30]} Rad8 {[%emt 0:03:56]} 17. g3 {[%emt 0:03:30]} Bxe3 {[%emt 0:00:31]} 18. Rxe3 {[%emt 0:00:00]} Qd7 {[%emt 0:07:23]} 19. Rde1 {[%emt 0:04:00]} Rxe3 {[%emt 0:00:45]} 20. Qxe3 {[%emt 0:00:30]} Nf8 {[%emt 0:00:10]} 21. Qa3 {[%emt 0:08:30]} a6 {[%emt 0:01:33]} 22. Qb4 {[%emt 0:01:30]} Ne6 {[%emt 0:00:06]} 23. Re3 {[%emt 0:00:30]} Qc7 {[%emt 0:01:48]} 24. Rb3 {[%emt 0:01:30]} Rd7 {[%emt 0:00:03]} 25. Qc4 {[%emt 0:03:30]} Qd8 {[%emt 0:00:42]} 26. Rb4 {[%emt 0:00:30]} h6 {[%emt 0:00:46]} 27. Qb3 {[%emt 0:01:39]} Qe7 {[%emt 0:00:21]} 28. Qe3 {[%emt 0:00:55]} Qd8 {[%emt 0:00:43]} 29. Qb3 {[%emt 0:00:17]} Qe7 {[%emt 0:00:07]} 30. Qe3 {[%emt 0:00:14]} Kf8 {[%emt 0:00:59]} 31. Nh4 {[%emt 0:01:35]} Rd5 {[%emt 0:00:28]} 32. g4 {[%emt 0:01:58]} Rg5 {[%emt 0:00:29]} 33. h3 {[%emt 0:00:46]} Qd7 {[%emt 0:00:29]} 34. Nf5 {[%emt 0:06:26]} h5 {[%emt 0:00:29]} 35. Qg3 {[%emt 0:00:50]} hxg4 {[%emt 0:00:16]} 36. hxg4 {[%emt 0:00:49]} g6 {[%emt 0:00:31]} 37. Nd6 {[%emt 0:04:15]} Nd8 {[%emt 0:00:26]} 38. f3 {[%emt 0:00:32]} Rd5 {[%emt 0:00:52]} 39. Qf4 {[%emt 0:02:07]} Kg7 {[%emt 0:00:13]} 40. Qe3 {[%emt 0:00:00]} Qe6 {[%emt 0:00:00]} 41. Kf2 {[%emt 0:12:07]} Rxd6 {[%emt 0:15:07]} 42. cxd6 {[%emt 0:00:30]} Qxd6 {[%emt 0:00:00]} 43. Rb3 {[%emt 0:01:30]} g5 {[%emt 0:05:31]} 44. f4 {[%emt 0:05:54]} gxf4 {[%emt 0:01:06]} 45. Qe4 {[%emt 0:00:33]} Ne6 {[%emt 0:01:52]} 46. Rd3 {[%emt 0:08:21]} Ng5 {[%emt 0:01:44]} 47. Qf5 {[%emt 0:00:59]} f3 {[%emt 0:00:21]} 48. Ke3 {[%emt 0:01:10]} Qh2 {[%emt 0:02:33]} 49. Rd2 {[%emt 0:00:45]} Qg1+ {[%emt 0:00:05]} 50. Kd3 {[%emt 0:00:31]} Qb1+ {[%emt 0:00:21]} 51. Kc4 {[%emt 0:02:09]} Ne4 {[%emt 0:01:31]} 0-1

[Event "28th CRO-chT Women 2019"]
[Site "Mali Losinj"]
[Date "2019.10.02"]
[Round "6.7"]
[White "Berke, Ana"]
[Black "Ivekovic, Tihana"]
[Result "1-0"]
[ECO "B40"]
[WhiteElo "2060"]
[BlackElo "2136"]
[Annotator "NA"]
[PlyCount "85"]
[EventDate "2019.09.28"]
[EventType "team-tourn"]
[EventCountry "CRO"]
[SourceTitle "playchess.com"]
[Source "ChessBase"]
[SourceQuality "1"]
[TimeControl "40/5400+30:1800+30"]

1. e4 {[%emt 0:04:30]} e6 {[%emt 0:00:30]} 2. d4 {[%emt 0:01:30]} d5 {[%emt 0:00:00]} 3. Nd2 {[%emt 0:00:30]} c5 {[%emt 0:00:00]} 4. Ngf3 {[%emt 0:00:00]} cxd4 {[%emt 0:00:30]} 5. Nxd4 {[%emt 0:00:00]} Nc6 {[%emt 0:00:30]} 6. Nxc6 {[%emt 0:06:30]} bxc6 {[%emt 0:00:00]} 7. Bd3 {[%emt 0:00:30]} Qc7 {[%emt 0:11:00]} 8. Qe2 {[%emt 0:03:30]} Nf6 {[%emt 0:17:30]} 9. O-O {[%emt 0:02:30]} dxe4 {[%emt 0:01:30]} 10. Nxe4 {[%emt 0:01:30]} Nxe4 {[%emt 0:03:30]} 11. Bxe4 {[%emt 0:08:30]} Bd6 {[%emt 0:03:30]} 12. h3 {[%emt 0:11:30]} O-O {[%emt 0:02:30]} 13. Rd1 {[%emt 0:01:30]} f5 {[%emt 0:22:30]} 14. Bf3 {[%emt 0:02:30]} Rb8 {[%emt 0:10:30]} 15. b3 {[%emt 0:02:30]} Be5 {[%emt 0:06:33]} 16. Rb1 {[%emt 0:00:30]} c5 {[%emt 0:07:02]} 17. Ba3 {[%emt 0:03:30]} Re8 {[%emt 0:00:06]} 18. Qc4 {[%emt 0:01:30]} Bd6 {[%emt 0:00:13]} 19. Rd2 {[%emt 0:12:30]} Rb6 {[%emt 0:00:34]} 20. Rbd1 {[%emt 0:07:30]} Ba6 {[%emt 0:00:39]} 21. Qc3 {[%emt 0:00:30]} e5 {[%emt 0:02:21]} 22. Bd5+ {[%emt 0:01:30]} Kh8 {[%emt 0:00:05]} 23. Bc4 {[%emt 0:03:30]} Bb7 {[%emt 0:01:03]} 24. Bb2 {[%emt 0:00:30]} Bf8 {[%emt 0:01:27]} 25. a4 {[%emt 0:01:30]} Rg6 {[%emt 0:01:03]} 26. Bd5 {[%emt 0:01:30]} Bc8 {[%emt 0:03:45]} 27. Bf3 {[%emt 0:01:30]} Rd6 {[%emt 0:01:56]} 28. Rxd6 {[%emt 0:04:11]} Bxd6 {[%emt 0:00:09]} 29. Qd2 {[%emt 0:01:18]} Bf8 {[%emt 0:01:15]} 30. Be2 {[%emt 0:02:07]} a6 {[%emt 0:01:26]} 31. Bc4 {[%emt 0:00:48]} f4 {[%emt 0:00:46]} 32. f3 {[%emt 0:02:41]} Be7 {[%emt 0:00:23]} 33. Qe2 {[%emt 0:00:33]} Bf6 {[%emt 0:01:05]} 34. Bxa6 {[%emt 0:01:01]} Bf5 {[%emt 0:00:28]} 35. Bd3 {[%emt 0:01:52]} Bxd3 {[%emt 0:00:33]} 36. Rxd3 {[%emt 0:01:44]} c4 {[%emt 0:00:30]} 37. bxc4 {[%emt 0:02:35]} Qxc4 {[%emt 0:00:36]} 38. Rd8 {[%emt 0:03:30]} Qc5+ {[%emt 0:00:12]} 39. Bd4 {[%emt 0:00:23]} Qe7 {[%emt 0:00:07]} 40. Rxe8+ {[%emt 0:00:00]} Qxe8 {[%emt 0:00:00]} 41. a5 {[%emt 0:03:17]} Qa4 {[%emt 0:04:13]} 42. Bb6 {[%emt 0:00:30]} h6 {[%emt 0:00:30]} 43. a6 {[%emt 0:03:30]} 1-0

[Event "28th CRO-chT Women 2019"]
[Site "Mali Losinj"]
[Date "2019.10.02"]
[Round "6.8"]
[White "Vujnovic, Patricija"]
[Black "Bogdanic, Katarina"]
[Result "1-0"]
[ECO "A06"]
[WhiteElo "2052"]
[BlackElo "1899"]
[Annotator "NA"]
[PlyCount "179"]
[EventDate "2019.09.28"]
[EventType "team-tourn"]
[EventCountry "CRO"]
[SourceTitle "playchess.com"]
[Source "ChessBase"]
[SourceQuality "1"]
[TimeControl "40/5400+30:1800+30"]

1. b3 {[%emt 0:02:30]} d5 {[%emt 0:02:30]} 2. Bb2 {[%emt 0:00:30]} Nf6 {[%emt 0:00:30]} 3. e3 {[%emt 0:00:30]} c5 {[%emt 0:01:30]} 4. Nf3 {[%emt 0:00:30]} e6 {[%emt 0:13:30]} 5. Bb5+ {[%emt 0:04:30]} Nbd7 {[%emt 0:00:30]} 6. O-O {[%emt 0:03:30]} Bd6 {[%emt 0:02:30]} 7. d3 {[%emt 0:09:30]} O-O {[%emt 0:07:30]} 8. Nbd2 {[%emt 0:07:30]} e5 {[%emt 0:21:30]} 9. Bxd7 {[%emt 0:03:30]} Nxd7 {[%emt 0:00:30]} 10. e4 {[%emt 0:00:30]} d4 {[%emt 0:01:30]} 11. Nc4 {[%emt 0:00:30]} Qc7 {[%emt 0:02:30]} 12. a4 {[%emt 0:02:30]} Re8 {[%emt 0:04:30]} 13. Qe2 {[%emt 0:07:30]} Nf8 {[%emt 0:00:30]} 14. Nh4 {[%emt 0:02:30]} Be7 {[%emt 0:04:30]} 15. Nf5 {[%emt 0:01:30]} Ng6 {[%emt 0:04:30]} 16. g3 {[%emt 0:01:30]} Bf8 {[%emt 0:02:30]} 17. Bc1 {[%emt 0:08:30]} Be6 {[%emt 0:01:30]} 18. Bd2 {[%emt 0:03:30]} Bxc4 {[%emt 0:04:30]} 19. bxc4 {[%emt 0:00:00]} Ne7 {[%emt 0:00:30]} 20. Nh4 {[%emt 0:06:00]} Qd7 {[%emt 0:02:30]} 21. f4 {[%emt 0:05:30]} exf4 {[%emt 0:04:02]} 22. Bxf4 {[%emt 0:00:30]} Ng6 {[%emt 0:01:24]} 23. Nxg6 {[%emt 0:01:30]} hxg6 {[%emt 0:00:16]} 24. Qf3 {[%emt 0:02:30]} Re6 {[%emt 0:03:36]} 25. Qg4 {[%emt 0:08:26]} Qe8 {[%emt 0:01:20]} 26. a5 {[%emt 0:03:21]} b5 {[%emt 0:01:00]} 27. cxb5 {[%emt 0:00:59]} Qxb5 {[%emt 0:00:08]} 28. Rfb1 {[%emt 0:00:42]} Qc6 {[%emt 0:00:48]} 29. a6 {[%emt 0:03:30]} c4 {[%emt 0:01:45]} 30. Rb7 {[%emt 0:02:48]} cxd3 {[%emt 0:00:54]} 31. cxd3 {[%emt 0:00:18]} Qc3 {[%emt 0:00:56]} 32. Qd1 {[%emt 0:00:49]} Bd6 {[%emt 0:02:46]} 33. Rb3 {[%emt 0:07:09]} Qc8 {[%emt 0:02:12]} 34. Bd2 {[%emt 0:00:37]} Bf8 {[%emt 0:00:27]} 35. Rc1 {[%emt 0:01:07]} Qxa6 {[%emt 0:00:28]} 36. Ra1 {[%emt 0:00:28]} Qc8 {[%emt 0:00:10]} 37. Rc1 {[%emt 0:00:37]} Qa6 {[%emt 0:00:30]} 38. Ra1 {[%emt 0:00:00]} Qc8 {[%emt 0:00:00]} 39. Rc1 {[%emt 0:00:00]} Qa6 {[%emt 0:00:00]} 40. Rc7 {[%emt 0:00:00]} Rb6 {[%emt 0:00:00]} 41. Rxb6 {[%emt 0:20:43]} Qxb6 {[%emt 0:05:48]} 42. Qc2 {[%emt 0:01:39]} Rb8 {[%emt 0:02:30]} 43. Bf4 {[%emt 0:02:47]} Bd6 {[%emt 0:05:30]} 44. Bxd6 {[%emt 0:02:35]} Qxd6 {[%emt 0:00:00]} 45. Rxa7 {[%emt 0:00:28]} Qb6 {[%emt 0:03:00]} 46. Qa2 {[%emt 0:03:16]} Qf6 {[%emt 0:03:38]} 47. Kg2 {[%emt 0:01:59]} Rc8 {[%emt 0:01:07]} 48. Ra8 {[%emt 0:02:05]} Rxa8 {[%emt 0:00:30]} 49. Qxa8+ {[%emt 0:00:00]} Kh7 {[%emt 0:00:00]} 50. Qd5 {[%emt 0:00:21]} Kg8 {[%emt 0:01:53]} 51. e5 {[%emt 0:00:15]} Qb6 {[%emt 0:00:04]} 52. Kf3 {[%emt 0:00:53]} Qb2 {[%emt 0:00:26]} 53. Qd8+ {[%emt 0:01:06]} Kh7 {[%emt 0:00:07]} 54. Qh4+ {[%emt 0:00:00]} Kg8 {[%emt 0:00:06]} 55. Qd8+ {[%emt 0:00:00]} Kh7 {[%emt 0:00:09]} 56. Ke4 {[%emt 0:01:02]} Qe2+ {[%emt 0:03:16]} 57. Kxd4 {[%emt 0:00:13]} Qb2+ {[%emt 0:00:14]} 58. Kd5 {[%emt 0:00:45]} Qb3+ {[%emt 0:00:42]} 59. Ke4 {[%emt 0:00:38]} Qc2 {[%emt 0:02:00]} 60. Qh4+ {[%emt 0:00:07]} Kg8 {[%emt 0:00:00]} 61. Qd8+ {[%emt 0:00:02]} Kh7 {[%emt 0:00:04]} 62. Qd7 {[%emt 0:01:34]} Qe2+ {[%emt 0:02:26]} 63. Kd4 {[%emt 0:00:08]} Qf2+ {[%emt 0:00:53]} 64. Kc4 {[%emt 0:00:47]} Qc2+ {[%emt 0:00:43]} 65. Kd4 {[%emt 0:00:18]} Qf2+ {[%emt 0:00:02]} 66. Kd5 {[%emt 0:00:51]} Qf3+ {[%emt 0:00:11]} 67. Kc4 {[%emt 0:00:20]} Qf2 {[%emt 0:00:10]} 68. d4 {[%emt 0:00:35]} Qa2+ {[%emt 0:00:02]} 69. Kc5 {[%emt 0:00:15]} Qa3+ {[%emt 0:00:11]} 70. Kb6 {[%emt 0:00:54]} Qb4+ {[%emt 0:01:21]} 71. Kc7 {[%emt 0:00:07]} Qa5+ {[%emt 0:00:57]} 72. Kd6 {[%emt 0:00:08]} Qb4+ {[%emt 0:00:12]} 73. Kc6 {[%emt 0:00:43]} Qa4+ {[%emt 0:00:06]} 74. Kc7 {[%emt 0:00:08]} Qa5+ {[%emt 0:00:10]} 75. Kd6 {[%emt 0:00:41]} Qb4+ {[%emt 0:00:03]} 76. Kd5 {[%emt 0:00:05]} Qb3+ {[%emt 0:00:09]} 77. Ke4 {[%emt 0:00:20]} Qc2+ {[%emt 0:00:11]} 78. Ke3 {[%emt 0:01:00]} Qc3+ {[%emt 0:00:11]} 79. Kf4 {[%emt 0:00:42]} Qd2+ {[%emt 0:00:26]} 80. Ke4 {[%emt 0:00:24]} Qc2+ {[%emt 0:00:07]} 81. Kd5 {[%emt 0:00:08]} Qb3+ {[%emt 0:00:08]} 82. Kc5 {[%emt 0:00:52]} Qa3+ {[%emt 0:01:12]} 83. Kb6 {[%emt 0:00:43]} Qb4+ {[%emt 0:00:14]} 84. Kc7 {[%emt 0:00:31]} Qa5+ {[%emt 0:00:08]} 85. Kb8 {[%emt 0:00:18]} Qb4+ {[%emt 0:02:00]} 86. Kc8 {[%emt 0:00:18]} Qf8+ {[%emt 0:01:15]} 87. Kc7 {[%emt 0:00:36]} Qa8 {[%emt 0:00:14]} 88. Qh3+ {[%emt 0:00:20]} Kg8 {[%emt 0:00:09]} 89. Qc8+ {[%emt 0:00:04]} Qxc8+ {[%emt 0:00:03]} 90. Kxc8 {[%emt 0:00:03]} 1-0

[Event "28th CRO-chT Women 2019"]
[Site "Mali Losinj"]
[Date "2019.10.03"]
[Round "7.2"]
[White "Sulc, Gordana"]
[Black "Medic, Mirjana"]
[Result "1/2-1/2"]
[ECO "C06"]
[WhiteElo "1882"]
[BlackElo "2163"]
[Annotator "NA"]
[PlyCount "119"]
[EventDate "2019.09.28"]
[EventType "team-tourn"]
[EventCountry "CRO"]
[SourceTitle "playchess.com"]
[Source "ChessBase"]
[SourceQuality "1"]
[TimeControl "40/5400+30:1800+30"]

1. e4 {[%emt 0:00:30]} e6 {[%emt 0:00:30]} 2. d4 {[%emt 0:00:00]} d5 {[%emt 0:00:00]} 3. Nd2 {[%emt 0:00:00]} Nf6 {[%emt 0:00:00]} 4. e5 {[%emt 0:00:00]} Nfd7 {[%emt 0:00:30]} 5. Bd3 {[%emt 0:00:00]} c5 {[%emt 0:00:00]} 6. c3 {[%emt 0:00:30]} Nc6 {[%emt 0:00:00]} 7. Ne2 {[%emt 0:00:00]} Qb6 {[%emt 0:00:30]} 8. Nf3 {[%emt 0:00:00]} cxd4 {[%emt 0:00:30]} 9. cxd4 {[%emt 0:00:30]} Bb4+ {[%emt 0:01:30]} 10. Bd2 {[%emt 0:00:30]} f6 {[%emt 0:00:30]} 11. exf6 {[%emt 0:03:30]} Nxf6 {[%emt 0:00:00]} 12. O-O {[%emt 0:00:30]} O-O {[%emt 0:01:00]} 13. Bc3 {[%emt 0:11:30]} Bxc3 {[%emt 0:10:30]} 14. bxc3 {[%emt 0:00:30]} Qc7 {[%emt 0:00:30]} 15. Qc2 {[%emt 0:14:30]} e5 {[%emt 0:08:30]} 16. dxe5 {[%emt 0:06:30]} Nxe5 {[%emt 0:00:30]} 17. Nxe5 {[%emt 0:00:00]} Qxe5 {[%emt 0:00:30]} 18. Rae1 {[%emt 0:06:00]} Qd6 {[%emt 0:04:30]} 19. Rb1 {[%emt 0:03:30]} b6 {[%emt 0:00:30]} 20. Rb4 {[%emt 0:01:30]} Bd7 {[%emt 0:03:30]} 21. Rh4 {[%emt 0:00:30]} h6 {[%emt 0:03:30]} 22. Ng3 {[%emt 0:06:30]} Rac8 {[%emt 0:03:30]} 23. Ba6 {[%emt 0:04:30]} Rc7 {[%emt 0:04:30]} 24. Qd3 {[%emt 0:02:30]} Qe5 {[%emt 0:01:30]} 25. Rd4 {[%emt 0:01:30]} Rc5 {[%emt 0:05:30]} 26. c4 {[%emt 0:03:30]} Ra5 {[%emt 0:01:30]} 27. Bb7 {[%emt 0:01:30]} dxc4 {[%emt 0:00:00]} 28. Qxc4+ {[%emt 0:09:30]} Be6 {[%emt 0:00:00]} 29. Qd3 {[%emt 0:00:30]} Bxa2 {[%emt 0:05:30]} 30. Rd1 {[%emt 0:06:15]} Qc7 {[%emt 0:02:30]} 31. Bf3 {[%emt 0:02:20]} Rc5 {[%emt 0:11:30]} 32. Ne4 {[%emt 0:04:44]} Nxe4 {[%emt 0:00:00]} 33. Rd7 {[%emt 0:01:38]} Nxf2 {[%emt 0:02:00]} 34. Qd4 {[%emt 0:03:50]} Nh3+ {[%emt 0:02:30]} 35. gxh3 {[%emt 0:03:22]} Rg5+ {[%emt 0:01:30]} 36. Bg2 {[%emt 0:02:19]} Qc2 {[%emt 0:04:30]} 37. Rd2 {[%emt 0:01:15]} Qf5 {[%emt 0:00:30]} 38. Rd1 {[%emt 0:01:44]} b5 {[%emt 0:02:30]} 39. Rxa7 {[%emt 0:00:52]} Bc4 {[%emt 0:00:30]} 40. Raa1 {[%emt 0:00:00]} Qxh3 {[%emt 0:00:00]} 41. Qe4 {[%emt 0:05:41]} Qh5 {[%emt 0:10:00]} 42. Kh1 {[%emt 0:00:30]} Rg4 {[%emt 0:08:30]} 43. Qb7 {[%emt 0:01:30]} Rgf4 {[%emt 0:02:30]} 44. Rg1 {[%emt 0:02:30]} R4f7 {[%emt 0:04:30]} 45. Qc6 {[%emt 0:01:30]} Rd8 {[%emt 0:01:30]} 46. Ra8 {[%emt 0:01:30]} Rxa8 {[%emt 0:01:30]} 47. Qxa8+ {[%emt 0:00:30]} Rf8 {[%emt 0:00:00]} 48. Qb7 {[%emt 0:00:30]} Qf7 {[%emt 0:00:00]} 49. Qc6 {[%emt 0:02:15]} Rd8 {[%emt 0:00:30]} 50. Re1 {[%emt 0:01:58]} Bd5 {[%emt 0:01:30]} 51. Qxb5 {[%emt 0:03:51]} Bxg2+ {[%emt 0:00:30]} 52. Kxg2 {[%emt 0:00:17]} Rd2+ {[%emt 0:03:30]} 53. Re2 {[%emt 0:00:49]} Qg6+ {[%emt 0:00:30]} 54. Kf2 {[%emt 0:01:43]} Rxe2+ {[%emt 0:00:30]} 55. Qxe2 {[%emt 0:00:11]} Qf5+ {[%emt 0:00:00]} 56. Kg3 {[%emt 0:01:36]} Kh7 {[%emt 0:00:00]} 57. h4 {[%emt 0:00:33]} Qg6+ {[%emt 0:00:30]} 58. Kh3 {[%emt 0:01:34]} Qf7 {[%emt 0:01:30]} 59. h5 {[%emt 0:02:52]} Qf5+ {[%emt 0:00:30]} 60. Kh4 {[%emt 0:00:23]} 1/2-1/2